fUST/lending_fUST_20240816
["ID","MTS","AMOUNT","RATE_DAILY","PERIOD"]
[335059378,1723800648592,-600.0,0.00042403,2]
[335059380,1723800648601,-1200.0,0.00042473,10]
[335059382,1723800648611,-500.0,0.0004274,2]
[335059384,1723800648621,-207.4367972,0.0004274,2]
[335059386,1723800648631,-207.4367972,0.0004274,2]
[335059388,1723800648643,-207.4367972,0.0004274,2]
[335059390,1723800648653,-207.4367972,0.0004274,2]
[335059393,1723800648664,-207.4367972,0.0004274,2]
[335059395,1723800648675,-153.0,0.0004274,2]
[335059397,1723800648684,-153.0,0.0004274,2]
[335059399,1723800648694,-153.0,0.0004274,2]
[335059401,1723800648702,-153.0,0.0004274,2]
[335059403,1723800648712,-153.0,0.0004274,2]
[335059405,1723800648721,-153.0,0.0004274,2]
[335059407,1723800648732,-153.0,0.0004274,2]
[335059409,1723800648741,-153.0,0.0004274,2]
[335059411,1723800648752,-153.0,0.0004274,2]
[335059413,1723800648762,-153.0,0.0004274,2]
[335059415,1723800648771,-412.6855718,0.0004274,2]
[335059417,1723800648781,-895.55920839,0.0004275,2]
[335059419,1723800648791,-600.0,0.0004284,2]
[335059421,1723800648800,-13528.63919474,0.0004288,120]
[335059423,1723800648810,-8003.7245237,0.00043,22]
[335060097,1723800655528,306.83657224,0.00027,120]
[335063860,1723801449112,235.084544,0.00010028,2]
[335063861,1723801449498,235.084544,0.00010055,2]
[335063862,1723801449555,235.084544,0.00010083,2]
[335063863,1723801520392,192.72080817,0.00010083,2]
[335063864,1723801538863,24900.0,9.57e-05,2]
[335063865,1723801544454,398.74543553,0.00010083,2]
[335063866,1723801544829,8731.72043343,0.00010083,2]
[335063869,1723801628157,-235.084544,0.0001011,2]
[335063870,1723801628180,-235.084544,0.00010138,2]
[335063871,1723801628205,-235.084544,0.00010165,2]
[335063872,1723801628231,-235.084544,0.00010193,2]
[335063873,1723801628254,-235.084544,0.0001022,2]
[335063874,1723801628278,-235.084544,0.00010248,2]
[335063875,1723801628301,-6.37043613,0.00010275,2]
[335063876,1723801630798,8868.4028581,9.549e-05,2]
[335063877,1723801653117,-228.71410787,0.00010275,2]
[335063878,1723801653144,-235.084544,0.00010303,2]
[335063879,1723801653166,-162.204175,0.0001032,2]
[335063880,1723801653189,-235.084544,0.0001033,2]
[335063881,1723801653212,-162.204175,0.00010337,2]
[335063882,1723801653235,-4268.49979129,0.00010337,2]
[335063883,1723801653257,-162.204175,0.00010354,2]
[335063884,1723801653280,-235.084544,0.00010358,2]
[335063885,1723801653302,-162.204175,0.00010372,2]
[335063886,1723801653326,-235.084544,0.00010385,2]
[335063887,1723801653349,-235.084544,0.00010413,2]
[335063888,1723801653376,-235.084544,0.0001044,2]
[335063889,1723801653399,-235.084544,0.00010468,2]
[335063890,1723801653421,-300.0,0.00010495,2]
[335063891,1723801653444,-300.0,0.00010495,2]
[335063892,1723801653466,-235.084544,0.00010495,2]
[335063893,1723801653489,-235.084544,0.00010523,2]
[335063894,1723801653512,-235.084544,0.0001055,2]
[335063895,1723801653533,-251.59481065,0.00010858,2]
[335063896,1723801653555,-848.5,0.00010959,2]
[335063897,1723801653576,-743.8196874,0.00010959,2]
[335063898,1723801653598,-707.09,0.00010959,2]
[335063899,1723801653620,-589.24,0.00010959,2]
[335063900,1723801653642,-491.03,0.00010959,2]
[335063901,1723801653667,-409.19,0.00010959,2]
[335063902,1723801653690,-420.0,0.00011539,2]
[335063903,1723801653712,-420.0,0.00011545,2]
[335063904,1723801653734,-154.79103211,0.00011842,2]
[335063905,1723801653759,-55451.94050567,0.00011842,2]
[335063906,1723801653781,-201.90108991,0.00012163,2]
[335063907,1723801653802,-210.13067206,0.00012222,2]
[335063908,1723801653824,-7011.29579993,0.00012516,2]
[335063909,1723801653846,-1182.44955323,0.00012529,2]
[335063910,1723801653870,-49287.69964583,0.00012542,2]
[335063912,1723801745261,-300.0,0.00010958,2]
[335063913,1723801745285,-102.73480973,0.00010958,2]
[335063914,1723801766105,-197.26519027,0.00010958,2]
[335063915,1723801766127,-340.99,0.00010959,2]
[335063916,1723801766147,-284.16,0.00010959,2]
[335063917,1723801766168,-7009.17472183,0.00011409,2]
[335063918,1723801766189,-155.17489998,0.00011409,2]
[335063919,1723801766378,-728.43490027,0.00011409,2]
[335063920,1723801766400,-7703.98342543,0.00011409,2]
[335063921,1723801774107,-236.8,0.00010959,2]
[335063922,1723801774129,-7038.26340445,0.00011409,2]
[335063947,1723801832486,-2512.78293944,0.00010739,2]
[335063950,1723801832529,-10405.3647565,0.00010739,2]
[335064035,1723801838719,-2368.52091969,0.00010739,2]
[335064040,1723801838760,-11247.05686506,0.00010739,2]
[335064042,1723801838773,-13817.46600112,0.00010739,2]
[335064045,1723801838802,-15100.74902386,0.00010739,2]
[335064047,1723801838814,-1765.67532584,0.00010958,2]
[335064049,1723801838824,-154.79103211,0.00010958,2]
[335064051,1723801838835,-197.34,0.00010959,2]
[335064052,1723801838844,-164.45,0.00010959,2]
[335064053,1723801838854,-822.25,0.00010959,2]
[335064054,1723801838863,-300.0,0.00011408,2]
[335064055,1723801838873,-300.0,0.00011408,2]
[335064056,1723801838883,-309.67712516,0.00011987,2]
[335064057,1723801838892,-8885.03887303,0.00012356,2]
[335064058,1723801838915,-33514.28850608,0.00012356,2]
[335064059,1723801838925,-2142.17325985,0.00012356,2]
[335064061,1723801838935,-1491.3545127,0.00012516,2]
[335064063,1723801838945,-2711.75574306,0.00012516,2]
[335064064,1723801838955,-420.0,0.00012531,2]
[335064065,1723801838964,-420.0,0.00012549,2]
[335064066,1723801838974,-9656.22406339,0.00012551,2]
[335064067,1723801838983,-20786.2804469,0.00012551,2]
[335064068,1723801838993,-1651.22887982,0.00012629,3]
[335064069,1723801839002,-1182.44955321,0.00012746,2]
[335064070,1723801839012,-933.51163948,0.00012782,2]
[335064071,1723801839022,-933.51163948,0.00012782,2]
[335064072,1723801839031,-508.90616512,0.00012786,2]
[335064073,1723801839043,-569.37734184,0.00012898,2]
[335064074,1723801839052,-601.69102478,0.00012898,2]
[335064075,1723801839064,-601.87255041,0.00012898,2]
[335064076,1723801839074,-181.44718107,0.00012934,2]
[335064077,1723801839083,-154.79103211,0.00012934,2]
[335064078,1723801839093,-156.95829692,0.00012934,2]
[335064079,1723801839102,-154.79103211,0.00012934,2]
[335064080,1723801839112,-543.83358768,0.00012934,2]
[335064081,1723801839122,-1182.44955321,0.00012963,2]
[335064082,1723801839132,-811.12417981,0.00012971,2]
[335064083,1723801839142,-188.49871468,0.00012971,2]
[335064084,1723801839151,-811.12417981,0.00012971,2]
[335064085,1723801839161,-404.31033644,0.00012971,2]
[335064086,1723801839171,-898.36998352,0.00012985,2]
[335064087,1723801839180,-154.79103211,0.00012985,2]
[335064088,1723801839326,-307.4149758,0.00012985,2]
[335064089,1723801839336,-309.53569723,0.00012985,2]
[335064090,1723801839346,-306.58834978,0.00012985,2]
[335064091,1723801839356,-189.9631639,0.00012985,2]
[335064092,1723801839366,-42786.2042072,0.00012989,2]
[335064093,1723801839376,-180.73325647,0.00012989,2]
[335064094,1723801839385,-154.79103211,0.00012989,2]
[335064095,1723801839396,-422.17784127,0.00012989,2]
[335064096,1723801839406,-320.56496226,0.00012989,2]
[335064097,1723801839416,-809.95963071,0.00012989,2]
[335064098,1723801839425,-154.79103211,0.00012999,2]
[335064099,1723801839438,-42091.60746691,0.00013,2]
[335064100,1723801839449,-342.54706255,0.00013025,2]
[335064101,1723801839459,-342.54706255,0.00013025,2]
[335064102,1723801839469,-162.5927117,0.00013025,2]
[335064103,1723801839479,-154.88997078,0.00013051,2]
[335064104,1723801839489,-1182.44955321,0.0001318,2]
[335064105,1723801839498,-158.03133886,0.00013333,2]
[335064106,1723801839508,-42786.2042072,0.00013387,2]
[335064107,1723801839518,-1182.44955321,0.00013397,2]
[335064108,1723801839527,-223.44653164,0.00013477,2]
[335064109,1723801839537,-242.18427054,0.00013496,2]
[335064110,1723801839547,-180.26438025,0.00013496,2]
[335064111,1723801839557,-154.90570431,0.00013497,2]
[335064112,1723801839567,-485.21933387,0.00013497,2]
[335064113,1723801839579,-35.09561325,0.00013497,2]
[335064114,1723801839590,-256.15180176,0.00013497,2]
[335064115,1723801839600,-197.19992737,0.00013497,2]
[335064116,1723801839610,-269.21476476,0.00013497,2]
[335064117,1723801839620,-197.43956767,0.00013497,2]
[335064118,1723801839630,-156.46495656,0.00013596,2]
[335064119,1723801839641,-184.2285852,0.00013596,2]
[335064120,1723801839650,-154.89891945,0.00013596,2]
[335064121,1723801839660,-308.13531118,0.00013596,2]
[335064122,1723801839669,-154.95827322,0.00013596,2]
[335064123,1723801839679,-181.68348154,0.00013596,2]
[335064124,1723801839689,-151.0,0.00013597,2]
[335064125,1723801839698,-151.0,0.00013597,2]
[335064126,1723801839708,-151.0,0.00013597,2]
[335064127,1723801839718,-151.0,0.00013597,2]
[335064128,1723801839732,-166.325077,0.00013597,2]
[335064129,1723801839742,-166.325077,0.00013597,2]
[335064130,1723801839752,-154.7968632,0.00013597,2]
[335064131,1723801839761,-160.36529473,0.00013597,2]
[335064132,1723801839771,-196.71565749,0.00013597,2]
[335064133,1723801839780,-176.06665181,0.00013597,2]
[335064134,1723801839790,-255.10499635,0.00013597,2]
[335064135,1723801839801,-154.85826827,0.00013597,2]
[335064136,1723801839812,-2165.20291982,0.00013597,2]
[335064137,1723801839823,-206.52794541,0.00013597,2]
[335064138,1723801839832,-154.79103211,0.00013597,2]
[335064139,1723801839842,-151.0,0.00013599,2]
[335064140,1723801839852,-301.4340064,0.00013599,2]
[335064141,1723801839862,-154.79103211,0.00013599,2]
[335064142,1723801839871,-251.8725953,0.00013698,2]
[335064143,1723801839881,-500.0,0.00013698,2]
[335064144,1723801839891,-500.0,0.00013698,2]
[335064145,1723801839901,-500.0,0.00013698,2]
[335064146,1723801839911,-176.3108167,0.00013698,2]
[335064147,1723801839921,-608.26637384,0.00013698,2]
[335064148,1723801839931,-3000.0,0.00013699,2]
[335064149,1723801839940,-186.270078,0.00013699,2]
[335064150,1723801839949,-500.0,0.00013699,2]
[335064151,1723801839959,-500.0,0.00013699,2]
[335064152,1723801839969,-500.0,0.00013699,2]
[335064153,1723801839980,-500.0,0.00013699,2]
[335064154,1723801839990,-500.0,0.00013699,2]
[335064155,1723801840000,-500.0,0.00013699,2]
[335064156,1723801840010,-500.0,0.00013699,2]
[335064157,1723801840021,-500.0,0.00013699,2]
[335064158,1723801840030,-500.0,0.00013699,2]
[335064159,1723801840040,-500.0,0.00013699,2]
[335064161,1723801840050,-500.0,0.00013699,2]
[335064162,1723801840060,-500.0,0.00013699,2]
[335064163,1723801840070,-500.0,0.00013699,2]
[335064164,1723801840080,-500.0,0.00013699,2]
[335064165,1723801840090,-500.0,0.00013699,2]
[335064166,1723801840100,-500.0,0.00013699,2]
[335064167,1723801840110,-588.96018523,0.00013699,2]
[335064168,1723801840119,-500.0,0.00013699,2]
[335064169,1723801840129,-500.0,0.00013699,2]
[335064170,1723801840138,-500.0,0.00013699,2]
[335064171,1723801840148,-500.0,0.00013699,2]
[335064172,1723801840158,-500.0,0.00013699,2]
[335064173,1723801840167,-500.0,0.00013699,2]
[335064174,1723801840177,-500.0,0.00013699,2]
[335064175,1723801840187,-500.0,0.00013699,2]
[335064176,1723801840197,-500.0,0.00013699,2]
[335064177,1723801840207,-500.0,0.00013699,2]
[335064178,1723801840216,-500.0,0.00013699,2]
[335064179,1723801840226,-500.0,0.00013699,2]
[335064180,1723801840236,-624.23506117,0.00013699,2]
[335064182,1723801840245,-587.0,0.00013765,2]
[335064183,1723801840255,-587.0,0.00013804,2]
[335064184,1723801840265,-157.02043595,0.00014245,2]
[335064185,1723801840274,-162.830916,0.00014247,2]
[335064186,1723801840284,-182.167404,0.00014247,2]
[335064187,1723801840294,-420.0,0.0001512,2]
[335064188,1723801840304,-823.0,0.00015184,2]
[335064189,1723801840320,-500.0,0.00016438,2]
[335064190,1723801840330,-500.0,0.00016438,2]
[335064191,1723801840340,-500.0,0.00016438,2]
[335064193,1723801840350,-500.0,0.00016438,2]
[335064194,1723801840359,-500.0,0.00016438,2]
[335064196,1723801840368,-500.0,0.00016438,2]
[335064198,1723801840378,-500.0,0.00016438,2]
[335064199,1723801840387,-500.0,0.00016438,2]
[335064201,1723801840396,-500.0,0.00016438,2]
[335064202,1723801840406,-500.0,0.00016438,2]
[335064204,1723801840416,-500.0,0.00016438,2]
[335064205,1723801840426,-500.0,0.00016438,2]
[335064206,1723801840436,-500.0,0.00016438,2]
[335064207,1723801840445,-500.0,0.00016438,2]
[335064208,1723801840455,-500.0,0.00016438,2]
[335064209,1723801840465,-500.0,0.00016438,2]
[335064210,1723801840475,-500.0,0.00016438,2]
[335064211,1723801840484,-500.0,0.00016438,2]
[335064212,1723801840494,-500.0,0.00016438,2]
[335064213,1723801840504,-500.0,0.00016438,2]
[335064214,1723801840513,-500.0,0.00016438,2]
[335064215,1723801840523,-500.0,0.00016438,2]
[335064216,1723801840532,-500.0,0.00016438,2]
[335064217,1723801840542,-500.0,0.00016438,2]
[335064218,1723801840551,-500.0,0.00016438,2]
[335064220,1723801840564,-500.0,0.00016438,2]
[335064222,1723801840574,-500.0,0.00016438,2]
[335064224,1723801840584,-500.0,0.00016438,2]
[335064226,1723801840595,-500.0,0.00016438,2]
[335064227,1723801840605,-500.0,0.00016438,2]
[335064228,1723801840614,-500.0,0.00016438,2]
[335064229,1723801840624,-500.0,0.00016438,2]
[335064230,1723801840634,-500.0,0.00016438,2]
[335064231,1723801840643,-500.0,0.00016438,2]
[335064232,1723801840653,-500.0,0.00016438,2]
[335064233,1723801840662,-500.0,0.00016438,2]
[335064234,1723801840672,-500.0,0.00016438,2]
[335064235,1723801840682,-500.0,0.00016438,2]
[335064236,1723801840692,-500.0,0.00016438,2]
[335064237,1723801840702,-500.0,0.00016438,2]
[335064238,1723801840712,-500.0,0.00016438,2]
[335064239,1723801840722,-500.0,0.00016438,2]
[335064240,1723801840737,-500.0,0.00016438,2]
[335064241,1723801840746,-500.0,0.00016438,2]
[335064242,1723801840755,-500.0,0.00016438,2]
[335064243,1723801840765,-250.0,0.00016438,2]
[335064244,1723801840775,-500.0,0.00016438,2]
[335064245,1723801840784,-500.0,0.00016438,2]
[335064246,1723801840794,-500.0,0.00016438,2]
[335064247,1723801840805,-500.0,0.00016438,2]
[335064248,1723801840816,-500.0,0.00016438,2]
[335064249,1723801840825,-500.0,0.00016438,2]
[335064250,1723801840835,-500.0,0.00016438,2]
[335064251,1723801840844,-500.0,0.00016438,2]
[335064252,1723801840854,-1152.0,0.00016703,2]
[335064253,1723801840863,-1205.0,0.00018373,2]
[335064254,1723801840873,-205.826204,0.00019178,2]
[335064255,1723801840882,-251.0,0.00019178,2]
[335064256,1723801840892,-156.57509394,0.0002,2]
[335064257,1723801840902,-381.79479471,0.0002,2]
[335064258,1723801840911,-186.270078,0.00020548,2]
[335064259,1723801840921,-5242.47821719,0.00024637,2]
[335064260,1723801840932,-42786.2042072,0.00024652,3]
[335064261,1723801840941,-952.97302419,0.00024662,2]
[335064262,1723801840951,-952.97302419,0.00024662,2]
[335064264,1723801840960,-277.52010074,0.0002469,2]
[335064265,1723801840970,-199.38098027,0.0002469,2]
[335064266,1723801840981,-1110.39279741,0.0002469,2]
[335064267,1723801840990,-705.45595223,0.0002469,2]
[335064268,1723801841000,-396.07639382,0.00024707,2]
[335064269,1723801841010,-154.85543373,0.00024728,2]
[335064270,1723801841020,-258.55298155,0.00024756,2]
[335064271,1723801841030,-152.757952,0.00024814,7]
[335064272,1723801841039,-151.0,0.00024814,7]
[335064273,1723801841049,-151.0,0.00024814,7]
[335064274,1723801841059,-166.325077,0.00024814,7]
[335064275,1723801841069,-166.325077,0.00024814,7]
[335064276,1723801841079,-151.0,0.00024814,7]
[335064277,1723801841089,-151.0,0.00024814,7]
[335064278,1723801841098,-505.968824,0.00024814,7]
[335064279,1723801841108,-385.357446,0.00024814,7]
[335064280,1723801841117,-505.968824,0.00024814,7]
[335064281,1723801841127,-385.357446,0.00024814,7]
[335064282,1723801841137,-151.0,0.00024814,7]
[335064283,1723801841147,-154.79103211,0.00024814,2]
[335064285,1723801841156,-151.0,0.00024837,7]
[335064287,1723801841165,-5476.26569239,0.00027,14]
[335064289,1723801841175,-4924.02773267,0.00027,2]
[335064290,1723801841185,-1260.16836963,0.00027,2]
[335064292,1723801841194,-662.3529605,0.00027,2]
[335064294,1723801841204,-326.403896,0.00027,7]
[335064296,1723801841213,-151.0,0.00027,7]
[335064297,1723801841223,-216.632926,0.00027,7]
[335064299,1723801841233,-151.0,0.00027,7]
[335064301,1723801841242,-151.0,0.00027,7]
[335064303,1723801841251,-151.0,0.00027,7]
[335064305,1723801841261,-447.7796042,0.0002983,2]
[335064307,1723801841272,-3000.0,0.000299,2]
[335064309,1723801841282,-3000.0,0.0002991,2]
[335064311,1723801841292,-3000.0,0.0002992,2]
[335064313,1723801841301,-42786.2042072,0.0002992,4]
[335064315,1723801841312,-3000.0,0.0002993,2]
[335064317,1723801841321,-275.943532,0.0002993,7]
[335064319,1723801841331,-151.0,0.0002993,7]
[335064321,1723801841341,-166.325077,0.0002993,7]
[335064323,1723801841350,-166.325077,0.0002993,7]
[335064325,1723801841360,-151.0,0.0002993,7]
[335064327,1723801841369,-151.0,0.0002993,7]
[335064329,1723801841378,-505.968824,0.0002993,7]
[335064331,1723801841387,-385.357446,0.0002993,7]
[335064333,1723801841397,-505.968824,0.0002993,7]
[335064335,1723801841406,-385.357446,0.0002993,7]
[335064337,1723801841416,-3000.0,0.0002994,2]
[335064339,1723801841425,-3000.0,0.0002995,2]
[335064341,1723801841435,-3000.0,0.0002996,2]
[335064343,1723801841445,-653.615729,0.0002996,7]
[335064345,1723801841454,-653.615729,0.0002996,7]
[335064347,1723801841463,-465.837704,0.0002996,7]
[335064349,1723801841473,-465.837704,0.0002996,7]
[335064351,1723801841482,-3000.0,0.0002997,2]
[335064352,1723801841492,-151.0,0.0002997,7]
[335064353,1723801841501,-3000.0,0.0002998,2]
[335064354,1723801841510,-3000.0,0.0002999,2]
[335064355,1723801841520,-332.0,0.0003,30]
[335064356,1723801841530,-3000.0,0.0003,2]
[335064357,1723801841539,-150.112234,0.0003,2]
[335064358,1723801841549,-3000.0,0.0003001,2]
[335064359,1723801841558,-3000.0,0.0003002,2]
[335064360,1723801841568,-3000.0,0.0003003,2]
[335064361,1723801841578,-3000.0,0.0003004,2]
[335064362,1723801841587,-326.403896,0.0003004,7]
[335064363,1723801841597,-3000.0,0.0003005,2]
[335064364,1723801841606,-151.0,0.0003005,7]
[335064365,1723801841616,-151.0,0.0003005,7]
[335064366,1723801841625,-151.0,0.0003005,7]
[335064367,1723801841635,-3000.0,0.0003006,2]
[335064368,1723801841645,-3000.0,0.0003007,2]
[335064369,1723801841654,-42786.2042072,0.0003007,4]
[335064370,1723801841664,-3000.0,0.0003008,2]
[335064371,1723801841674,-3000.0,0.0003009,2]
[335064372,1723801841683,-3000.0,0.000301,2]
[335064373,1723801841695,-3000.0,0.0003011,2]
[335064374,1723801841704,-4190.224585,0.0003012,2]
[335064375,1723801841818,-1001.557039,0.000312,6]
[335064376,1723801841827,-505.12022929,0.00031231,2]
[335064377,1723801841837,-151.0,0.00031232,7]
[335064378,1723801841847,-151.0,0.00031232,7]
[335064379,1723801841857,-502.024031,0.00031232,7]
[335064380,1723801841866,-151.0,0.00031232,7]
[335064381,1723801841876,-151.0,0.00031232,7]
[335064382,1723801841887,-151.0,0.00031232,7]
[335064383,1723801841897,-152.217269,0.00031232,7]
[335064384,1723801841907,-151.0,0.00031232,7]
[335064385,1723801841916,-151.0,0.00031232,7]
[335064386,1723801841926,-151.0,0.00031232,7]
[335064387,1723801841936,-151.0,0.00031232,7]
[335064388,1723801841946,-151.0,0.00031232,7]
[335064389,1723801841956,-151.0,0.00031232,7]
[335064390,1723801841965,-166.325077,0.00031232,7]
[335064391,1723801841974,-166.325077,0.00031232,7]
[335064392,1723801841984,-653.615729,0.00031232,7]
[335064393,1723801841994,-653.615729,0.00031232,7]
[335064394,1723801842004,-465.837704,0.00031232,7]
[335064395,1723801842014,-465.837704,0.00031232,7]
[335064396,1723801842024,-3882.42,0.00031232,4]
[335064397,1723801842033,-3882.42,0.00031232,4]
[335064398,1723801842043,-3882.42,0.00031232,4]
[335064399,1723801842052,-3882.42,0.00031232,4]
[335064400,1723801842062,-3882.42,0.00031232,4]
[335064401,1723801842072,-151.0,0.00031242,7]
[335064402,1723801842082,-150.0,0.00031411,14]
[335064403,1723801842091,-235.28,0.00031411,14]
[335064404,1723801842100,-4999.999999,0.00031411,120]
[335064405,1723801842110,-200.0,0.0003145,2]
[335064406,1723801842120,-200.0,0.0003145,2]
[335064407,1723801842130,-200.0,0.0003145,2]
[335064408,1723801842139,-170.09579056,0.0003145,5]
[335064409,1723801842149,-447.7796042,0.00032482,2]
[335064410,1723801842158,-151.0,0.00032707,7]
[335064411,1723801842168,-151.0,0.00032707,7]
[335064412,1723801842178,-3882.42,0.00032715,4]
[335064413,1723801842188,-151.0,0.00032716,7]
[335064414,1723801842198,-151.0,0.00032716,7]
[335064415,1723801842207,-3882.42,0.00032716,4]
[335064416,1723801842216,-3882.42,0.00032716,4]
[335064417,1723801842225,-3882.42,0.00032716,4]
[335064418,1723801842235,-3882.42,0.00032716,4]
[335064419,1723801842244,-3882.42,0.00032716,4]
[335064420,1723801842253,-85572.4084145,0.00032717,4]
[335064421,1723801842263,-3882.42,0.00032726,4]
[335064422,1723801842272,-3882.42,0.00032726,4]
[335064423,1723801842282,-3882.42,0.00032726,4]
[335064424,1723801842290,-3882.42,0.00032726,4]
[335064425,1723801842302,-3882.42,0.00032726,4]
[335064426,1723801842312,-205305.92411649,0.00032727,60]
[335064427,1723801842321,-151.0,0.00032727,7]
[335064428,1723801842331,-151.0,0.00032727,7]
[335064429,1723801842340,-268.96074,0.00032727,7]
[335064430,1723801842350,-502.024031,0.00032727,7]
[335064431,1723801842360,-151.0,0.00032727,7]
[335064432,1723801842369,-151.0,0.00032727,7]
[335064433,1723801842378,-151.0,0.00032727,7]
[335064434,1723801842388,-151.0,0.00032727,7]
[335064435,1723801842397,-151.0,0.00032727,7]
[335064436,1723801842408,-151.0,0.00032727,7]
[335064437,1723801842417,-151.0,0.00032727,7]
[335064438,1723801842428,-166.325077,0.00032727,7]
[335064439,1723801842437,-166.325077,0.00032727,7]
[335064440,1723801842447,-326.403896,0.00032727,7]
[335064441,1723801842456,-231.074624,0.00032727,7]
[335064442,1723801842466,-151.0,0.00032727,7]
[335064443,1723801842476,-505.968824,0.00032727,7]
[335064444,1723801842485,-505.968824,0.00032727,7]
[335064445,1723801842495,-385.357446,0.00032727,7]
[335064446,1723801842505,-385.357446,0.00032727,7]
[335064447,1723801842514,-151.0,0.00032727,7]
[335064448,1723801842524,-151.0,0.00032727,7]
[335064449,1723801842534,-151.0,0.00032727,7]
[335064450,1723801842543,-653.615729,0.00032727,7]
[335064451,1723801842553,-653.615729,0.00032727,7]
[335064452,1723801842564,-465.837704,0.00032727,7]
[335064453,1723801842574,-465.837704,0.00032727,7]
[335064454,1723801842584,-4171.7,0.000328,14]
[335064455,1723801842594,-282.4,0.000328,7]
[335064456,1723801842603,-4005.86,0.000328,14]
[335064457,1723801842613,-400.0,0.0003282,2]
[335064458,1723801842622,-200.18076892,0.0003282,2]
[335064459,1723801842631,-340.61737907,0.0003282,2]
[335064460,1723801842641,-600.0,0.00034823,2]
[335064461,1723801842650,-447.7796042,0.00035134,2]
[335064462,1723801842659,-162.862662,0.00035616,120]
[335064463,1723801842669,-800.0,0.00037164,2]
[335064464,1723801842679,-447.7796042,0.00037787,2]
[335064465,1723801842688,-2000.0,0.00038356,59]
[335064466,1723801842698,-500.0,0.00039552,5]
[335064467,1723801842708,-801.11336275,0.00039755,2]
[335064468,1723801842718,-447.7796042,0.00040439,2]
[335064469,1723801842732,-166.714723,0.00041096,120]
[335064470,1723801842742,-166.714723,0.00041096,120]
[335064471,1723801842752,-166.714723,0.00041096,120]
[335064472,1723801842762,-166.714723,0.00041096,120]
[335064473,1723801842772,-166.714723,0.00041096,120]
[335064474,1723801842783,-166.714723,0.00041096,120]
[335064475,1723801842793,-500.0,0.00041634,30]
[335064476,1723801842805,-600.0,0.00041965,2]
[335064477,1723801842816,-10189.8576863,0.00042,22]
[335064478,1723801842826,-3882.42,0.00042012,60]
[335064479,1723801842836,-4315.75938702,0.00042013,2]
[335064480,1723801842846,-4315.75938702,0.00042239,2]
[335064481,1723801842856,-4171.7,0.000423,14]
[335064482,1723801842867,-600.0,0.00042403,2]
[335064483,1723801842876,-4005.86,0.000425,14]
[335064484,1723801842886,-4315.75938702,0.00042696,2]
[335064485,1723801842896,-39175.7024314,0.000427,120]
[335064486,1723801842906,-500.0,0.0004274,2]
[335064487,1723801842915,-373.3764537,0.0004274,2]
[335064488,1723801842924,-282.4,0.000428,30]
[335064489,1723801842933,-151.0,0.000428,120]
[335064490,1723801842944,-151.0,0.000428,120]
[335064491,1723801842953,-2005.25501609,0.00042839,2]
[335064492,1723801842962,-961.63304213,0.0004284,2]
[335064493,1723801842972,-447.7796042,0.00043091,2]
[335064494,1723801842982,-3882.42,0.00043189,60]
[335064495,1723801842992,-3000.0,0.000432,120]
[335064497,1723801843001,-157.96521244,0.000437,120]
[335064499,1723801843011,-3636.073549,0.0004372,30]
[335064501,1723801843021,-4226.434466,0.0004372,30]
[335064503,1723801843030,-169.259371,0.0004372,30]
[335064504,1723801843039,-160.0,0.00043774,3]
[335064505,1723801843049,-160.72517786,0.00043774,5]
[335064506,1723801843058,-179289.88143044,0.000438,30]
[335064507,1723801843068,-500.0,0.00043825,30]
[335064508,1723801843077,-326.403896,0.00043834,120]
[335064509,1723801843086,-505.968824,0.00043834,120]